Workbook

Sheet Stamdata
B1: =". . R e g n s k a b : "&YEAR(C17) -> . . R e g n s k a b : 2016
B2: Foreningen / klubbens navn | E2: Klub X
B4: Beholdningskonti | C4: Beholdning | E4: Modkonti | G4: Posteringstekster
B5: FormueFlex | C5: 66345.15 | E5: Kontingent | G5: Hævet i bank
B6: Bank Alm. | C6: 13520 | E6: Gaver | G6: Kontingentindtægt
B7: Kasse | C7: 250 | E7: Diverse | G7: Kontingent FK
B8: Aktie | C8: 1000 | E8: Kørsel | G8: Bestyrelsesmøde
E9: Diæter | G9: Udbytte
E10: Lommepenge | G10: Kørsel
E11: Møder | G11: Diæter
E12: Arrangementer | G12: Renter
E13: Løntab
B17: Periode start | C17: 2016-01-01
B18: Periode slut | C18: 2016-12-31
B19: Formand | C19: B. Andersen
B20: Kasserer | C20: P. Madsen
B21: Revisor | C21: K. Nielsen
B22: Revisor

Sheet Postering
B2: Dato | C2: Bilag | D2: Tekst | E2: Konto | F2: Indtægt | G2: Udgift | H2: Modkonto
B3: 2016-01-27 | C3: 1 | D3: Hævet i bank | E3: Kasse | F3: 1000 | H3: Bank Alm.
B4: 2016-01-28 | C4: 2 | D4: Pennesæt A.B | E4: Kasse | G4: 249 | H4: Gaver
B5: 2016-01-29 | C5: 3 | D5: Kontingentindtægt Jan. | E5: Bank Alm. | F5: 1560 | H5: Kontingent
B6: 2016-02-24 | C6: 4 | D6: Vingave C.N 60 år | E6: Bank Alm. | G6: 500 | H6: Gaver
B7: 2016-02-26 | C7: 5 | D7: Kontingentindtægt Feb. | E7: Bank Alm. | F7: 1560 | H7: Kontingent
B8: 2016-03-03 | C8: 6 | D8: Vingave A.N 60 år | E8: Bank Alm. | G8: 500 | H8: Gaver
B9: 2016-03-08 | C9: 7 | D9: Udbytte aktie | E9: Bank Alm. | F9: 73 | H9: Diverse
B10: 2016-03-08 | C10: 8 | D10: Bowling | E10: Bank Alm. | G10: 982.65 | H10: Arrangementer
B11: 2016-03-31 | C11: 9 | D11: Kontingentindtægt Mar. | E11: Bank Alm. | F11: 1560 | H11: Kontingent
B12: 2016-04-18 | C12: 10 | D12: Kontingent FK Jan.kv. | E12: Bank Alm. | G12: 1352 | H12: Kontingent
B13: 2016-04-22 | C13: 11 | D13: Kørsel i afd. Og bank | E13: Kasse | G13: 300 | H13: Kørsel
B14: 2016-04-22 | C14: 11 | D14: Kontingentindberetning | E14: Kasse | G14: 300 | H14: Diæter
B15: 2016-05-04 | C15: 12 | D15: Kontingentindtægt Apr. | E15: Bank Alm. | F15: 1560 | H15: Kontingent
B16: 2016-05-25 | C16: 13 | D16: Revision | E16: Kasse | G16: 75 | H16: Diæter
B17: 2016-05-25 | C17: 14 | D17: Revision | E17: Kasse | G17: 75 | H17: Diæter
B18: 2016-05-31 | C18: 15 | D18: Kontingentindtægt Maj. | E18: Bank Alm. | F18: 1560 | H18: Kontingent
B19: 2016-06-01 | C19: 16 | D19: Kort gebyr | E19: Bank Alm. | G19: 200 | H19: Diverse
B1002: Sum | F1002: =SUBTOTAL(109,F3:F1000) -> 8873 | G1002: =SUBTOTAL(109,G3:G1000) -> 4533.65

Sheet Regnskab (hidden)
A1: ="Regnskab "& YEAR(Stamdata!C17) &" "&Stamdata!E2 -> Regnskab 2016 Klub X
C4: Indtægter
C5: =IF(Stamdata!E5<>"",Stamdata!E5,0) -> Kontingent | E5: =IF(C5<>0,SUMPRODUCT((modkonto=C5)*(intægt)),0) -> 7800
C6: =IF(Stamdata!E6<>"",Stamdata!E6,0) -> Gaver | E6: 0
C7: =IF(Stamdata!E7<>"",Stamdata!E7,0) -> Diverse | E7: 73
C8: =IF(Stamdata!E8<>"",Stamdata!E8,0) -> Kørsel | E8: 0
C9: =IF(Stamdata!E9<>"",Stamdata!E9,0) -> Diæter | E9: 0
C10: =IF(Stamdata!E10<>"",Stamdata!E10,0) -> Lommepenge | E10: 0
C11: =IF(Stamdata!E11<>"",Stamdata!E11,0) -> Møder | E11: 0
C12: =IF(Stamdata!E12<>"",Stamdata!E12,0) -> Arrangementer | E12: 0
C13: =IF(Stamdata!E13<>"",Stamdata!E13,0) -> Løntab | E13: 0
C14: =IF(Stamdata!E14<>"",Stamdata!E14,0) -> 0 | E14: 0
C15: =IF(Stamdata!E15<>"",Stamdata!E15,0) -> 0 | E15: 0
C16: =IF(Stamdata!E16<>"",Stamdata!E16,0) -> 0 | E16: 0
C17: =IF(Stamdata!E17<>"",Stamdata!E17,0) -> 0 | E17: 0
C18: =IF(Stamdata!E18<>"",Stamdata!E18,0) -> 0 | E18: 0
C19: =IF(Stamdata!E19<>"",Stamdata!E19,0) -> 0 | E19: 0
C20: =IF(Stamdata!E20<>"",Stamdata!E20,0) -> 0 | E20: 0
C21: =IF(Stamdata!E21<>"",Stamdata!E21,0) -> 0 | E21: 0
C22: =IF(Stamdata!E22<>"",Stamdata!E22,0) -> 0 | E22: 0
C23: =IF(Stamdata!E23<>"",Stamdata!E23,0) -> 0 | E23: 0
C24: =IF(Stamdata!E24<>"",Stamdata!E24,0) -> 0 | E24: 0
C25: =IF(Stamdata!E25<>"",Stamdata!E25,0) -> 0 | E25: 0
C26: =IF(Stamdata!E26<>"",Stamdata!E26,0) -> 0 | E26: 0
E27: =SUM(E5:E26) -> 7873
C29: Udgifter
C30: =IF(Stamdata!E5<>"",Stamdata!E5,0) -> Kontingent | E30: =IF(C30<>0,SUMPRODUCT((modkonto=C30)*(udgift)),0) -> 1352
C31: =IF(Stamdata!E6<>"",Stamdata!E6,0) -> Gaver | E31: 1249
C32: =IF(Stamdata!E7<>"",Stamdata!E7,0) -> Diverse | E32: 200
C33: =IF(Stamdata!E8<>"",Stamdata!E8,0) -> Kørsel | E33: 300
C34: =IF(Stamdata!E9<>"",Stamdata!E9,0) -> Diæter | E34: 450
C35: =IF(Stamdata!E10<>"",Stamdata!E10,0) -> Lommepenge | E35: 0
C36: =IF(Stamdata!E11<>"",Stamdata!E11,0) -> Møder | E36: 0
C37: =IF(Stamdata!E12<>"",Stamdata!E12,0) -> Arrangementer | E37: 982.65
C38: =IF(Stamdata!E13<>"",Stamdata!E13,0) -> Løntab | E38: 0
C39: =IF(Stamdata!E14<>"",Stamdata!E14,0) -> 0 | E39: 0
C40: =IF(Stamdata!E15<>"",Stamdata!E15,0) -> 0 | E40: 0
C41: =IF(Stamdata!E16<>"",Stamdata!E16,0) -> 0 | E41: 0
C42: =IF(Stamdata!E17<>"",Stamdata!E17,0) -> 0 | E42: 0
C43: =IF(Stamdata!E18<>"",Stamdata!E18,0) -> 0 | E43: 0
C44: =IF(Stamdata!E19<>"",Stamdata!E19,0) -> 0 | E44: 0
C45: =IF(Stamdata!E20<>"",Stamdata!E20,0) -> 0 | E45: 0
C46: =IF(Stamdata!E21<>"",Stamdata!E21,0) -> 0 | E46: 0
C47: =IF(Stamdata!E22<>"",Stamdata!E22,0) -> 0 | E47: 0
C48: =IF(Stamdata!E23<>"",Stamdata!E23,0) -> 0 | E48: 0
C49: =IF(Stamdata!E24<>"",Stamdata!E24,0) -> 0 | E49: 0
C50: =IF(Stamdata!E25<>"",Stamdata!E25,0) -> 0 | E50: 0
C51: =IF(Stamdata!E26<>"",Stamdata!E26,0) -> 0 | E51: 0
E52: =SUM(E30:E51) -> 4533.65
C55: Resultat | E55: =E27-E52 -> 3339.35
C58: Aktiver
C59: =IF(Stamdata!B5<>"",Stamdata!B5,0) -> FormueFlex | E59: =Stamdata!C5-SUMPRODUCT((modkonto=C59)*(intægt))+SUMPRODUCT((konto=C59)*(intægt))+SUMPRODUCT((modkonto=C59)*(udgift))-SUMPRODUCT((konto=C59)*(udgift)) -> 66345.15
C60: =IF(Stamdata!B6<>"",Stamdata!B6,0) -> Bank Alm. | E60: =Stamdata!C6-SUMPRODUCT((modkonto=C60)*(intægt))+SUMPRODUCT((konto=C60)*(intægt))+SUMPRODUCT((modkonto=C60)*(udgift))-SUMPRODUCT((konto=C60)*(udgift)) -> 16858.35
C61: =IF(Stamdata!B7<>"",Stamdata!B7,0) -> Kasse | E61: =Stamdata!C7-SUMPRODUCT((modkonto=C61)*(intægt))+SUMPRODUCT((konto=C61)*(intægt))+SUMPRODUCT((modkonto=C61)*(udgift))-SUMPRODUCT((konto=C61)*(udgift)) -> 251
C62: =IF(Stamdata!B8<>"",Stamdata!B8,0) -> Aktie | E62: =Stamdata!C8-SUMPRODUCT((modkonto=C62)*(intægt))+SUMPRODUCT((konto=C62)*(intægt))+SUMPRODUCT((modkonto=C62)*(udgift))-SUMPRODUCT((konto=C62)*(udgift)) -> 1000
C63: =IF(Stamdata!B9<>"",Stamdata!B9,0) -> 0 | E63: =Stamdata!C9-SUMPRODUCT((modkonto=C63)*(intægt))+SUMPRODUCT((konto=C63)*(intægt))+SUMPRODUCT((modkonto=C63)*(udgift))-SUMPRODUCT((konto=C63)*(udgift)) -> 0
C64: =IF(Stamdata!B10<>"",Stamdata!B10,0) -> 0 | E64: =Stamdata!C10-SUMPRODUCT((modkonto=C64)*(intægt))+SUMPRODUCT((konto=C64)*(intægt))+SUMPRODUCT((modkonto=C64)*(udgift))-SUMPRODUCT((konto=C64)*(udgift)) -> 0
C65: =IF(Stamdata!B11<>"",Stamdata!B11,0) -> 0 | E65: =Stamdata!C11-SUMPRODUCT((modkonto=C65)*(intægt))+SUMPRODUCT((konto=C65)*(intægt))+SUMPRODUCT((modkonto=C65)*(udgift))-SUMPRODUCT((konto=C65)*(udgift)) -> 0
C66: =IF(Stamdata!B12<>"",Stamdata!B12,0) -> 0 | E66: =Stamdata!C12-SUMPRODUCT((modkonto=C66)*(intægt))+SUMPRODUCT((konto=C66)*(intægt))+SUMPRODUCT((modkonto=C66)*(udgift))-SUMPRODUCT((konto=C66)*(udgift)) -> 0
C67: =IF(Stamdata!B13<>"",Stamdata!B13,0) -> 0 | E67: =Stamdata!C13-SUMPRODUCT((modkonto=C67)*(intægt))+SUMPRODUCT((konto=C67)*(intægt))+SUMPRODUCT((modkonto=C67)*(udgift))-SUMPRODUCT((konto=C67)*(udgift)) -> 0
C68: =IF(Stamdata!B14<>"",Stamdata!B14,0) -> 0 | E68: =Stamdata!C14-SUMPRODUCT((modkonto=C68)*(intægt))+SUMPRODUCT((konto=C68)*(intægt))+SUMPRODUCT((modkonto=C68)*(udgift))-SUMPRODUCT((konto=C68)*(udgift)) -> 0
C69: =IF(Stamdata!B15<>"",Stamdata!B15,0) -> 0 | E69: =Stamdata!C15-SUMPRODUCT((modkonto=C69)*(intægt))+SUMPRODUCT((konto=C69)*(intægt))+SUMPRODUCT((modkonto=C69)*(udgift))-SUMPRODUCT((konto=C69)*(udgift)) -> 0
C70: =IF(Stamdata!B16<>"",Stamdata!B16,0) -> 0 | E70: =Stamdata!C16-SUMPRODUCT((modkonto=C70)*(intægt))+SUMPRODUCT((konto=C70)*(intægt))+SUMPRODUCT((modkonto=C70)*(udgift))-SUMPRODUCT((konto=C70)*(udgift)) -> 0
E71: =SUM(E59:E70) -> 84454.5
C74: Passiver
C75: =IF(Stamdata!B5<>"",Stamdata!B5,0) -> FormueFlex | E75: =Stamdata!C5 -> 66345.15
C76: =IF(Stamdata!B6<>"",Stamdata!B6,0) -> Bank Alm. | E76: =Stamdata!C6 -> 13520
C77: =IF(Stamdata!B7<>"",Stamdata!B7,0) -> Kasse | E77: =Stamdata!C7 -> 250
C78: =IF(Stamdata!B8<>"",Stamdata!B8,0) -> Aktie | E78: =Stamdata!C8 -> 1000
C79: =IF(Stamdata!B9<>"",Stamdata!B9,0) -> 0 | E79: =Stamdata!C9 -> 0
C80: =IF(Stamdata!B10<>"",Stamdata!B10,0) -> 0 | E80: =Stamdata!C10 -> 0
C81: =IF(Stamdata!B11<>"",Stamdata!B11,0) -> 0 | E81: =Stamdata!C11 -> 0
C82: =IF(Stamdata!B12<>"",Stamdata!B12,0) -> 0 | E82: =Stamdata!C12 -> 0
C83: =IF(Stamdata!B13<>"",Stamdata!B13,0) -> 0 | E83: =Stamdata!C13 -> 0
C84: =IF(Stamdata!B14<>"",Stamdata!B14,0) -> 0 | E84: =Stamdata!C14 -> 0
C85: =IF(Stamdata!B15<>"",Stamdata!B15,0) -> 0 | E85: =Stamdata!C15 -> 0
C86: =IF(Stamdata!B16<>"",Stamdata!B16,0) -> 0 | E86: =Stamdata!C16 -> 0
C87: Resultat | E87: =E55 -> 3339.35
E88: =SUM(E75:E87) -> 84454.5
C91: Periode | D91: =Stamdata!C17 -> 2016-01-01 | E91: =Stamdata!C18 -> 2016-12-31
B93: Regnskabet er revideret og fundet i orden
B95: Silkeborg d.

Sheet Data (hidden)
M4: Modkonti +
M5: =IFERROR(INDEX($O$1:$O$35,SMALL(IF($O$1:$O$35<>0,ROW($O$1:$O$35)),ROW(1:1))),"") -> Kontingent | O5: =Stamdata!E5 -> Kontingent
M6: =IFERROR(INDEX($O$1:$O$35,SMALL(IF($O$1:$O$35<>0,ROW($O$1:$O$35)),ROW(2:2))),"") -> Gaver | O6: =Stamdata!E6 -> Gaver
M7: =IFERROR(INDEX($O$1:$O$35,SMALL(IF($O$1:$O$35<>0,ROW($O$1:$O$35)),ROW(3:3))),"") -> Diverse | O7: =Stamdata!E7 -> Diverse
M8: =IFERROR(INDEX($O$1:$O$35,SMALL(IF($O$1:$O$35<>0,ROW($O$1:$O$35)),ROW(4:4))),"") -> Kørsel | O8: =Stamdata!E8 -> Kørsel
M9: =IFERROR(INDEX($O$1:$O$35,SMALL(IF($O$1:$O$35<>0,ROW($O$1:$O$35)),ROW(5:5))),"") -> Diæter | O9: =Stamdata!E9 -> Diæter
M10: =IFERROR(INDEX($O$1:$O$35,SMALL(IF($O$1:$O$35<>0,ROW($O$1:$O$35)),ROW(6:6))),"") -> Lommepenge | O10: =Stamdata!E10 -> Lommepenge
M11: =IFERROR(INDEX($O$1:$O$35,SMALL(IF($O$1:$O$35<>0,ROW($O$1:$O$35)),ROW(7:7))),"") -> Møder | O11: =Stamdata!E11 -> Møder
M12: =IFERROR(INDEX($O$1:$O$35,SMALL(IF($O$1:$O$35<>0,ROW($O$1:$O$35)),ROW(8:8))),"") -> Arrangementer | O12: =Stamdata!E12 -> Arrangementer
M13: =IFERROR(INDEX($O$1:$O$35,SMALL(IF($O$1:$O$35<>0,ROW($O$1:$O$35)),ROW(9:9))),"") -> Løntab | O13: =Stamdata!E13 -> Løntab
M14: =IFERROR(INDEX($O$1:$O$35,SMALL(IF($O$1:$O$35<>0,ROW($O$1:$O$35)),ROW(10:10))),"") -> FormueFlex | O14: =Stamdata!E14 -> 0
M15: =IFERROR(INDEX($O$1:$O$35,SMALL(IF($O$1:$O$35<>0,ROW($O$1:$O$35)),ROW(11:11))),"") -> Bank Alm. | O15: =Stamdata!E15 -> 0
M16: =IFERROR(INDEX($O$1:$O$35,SMALL(IF($O$1:$O$35<>0,ROW($O$1:$O$35)),ROW(12:12))),"") -> Kasse | O16: =Stamdata!E16 -> 0
M17: =IFERROR(INDEX($O$1:$O$35,SMALL(IF($O$1:$O$35<>0,ROW($O$1:$O$35)),ROW(13:13))),"") -> Aktie | O17: =Stamdata!E17 -> 0
M18: =IFERROR(INDEX($O$1:$O$35,SMALL(IF($O$1:$O$35<>0,ROW($O$1:$O$35)),ROW(14:14))),"") ->  | O18: =Stamdata!E18 -> 0
M19: =IFERROR(INDEX($O$1:$O$35,SMALL(IF($O$1:$O$35<>0,ROW($O$1:$O$35)),ROW(15:15))),"") ->  | O19: =Stamdata!E19 -> 0
M20: =IFERROR(INDEX($O$1:$O$35,SMALL(IF($O$1:$O$35<>0,ROW($O$1:$O$35)),ROW(16:16))),"") ->  | O20: =Stamdata!E20 -> 0
M21: =IFERROR(INDEX($O$1:$O$35,SMALL(IF($O$1:$O$35<>0,ROW($O$1:$O$35)),ROW(17:17))),"") ->  | O21: =Stamdata!E21 -> 0
M22: =IFERROR(INDEX($O$1:$O$35,SMALL(IF($O$1:$O$35<>0,ROW($O$1:$O$35)),ROW(18:18))),"") ->  | O22: =Stamdata!E22 -> 0
M23: =IFERROR(INDEX($O$1:$O$35,SMALL(IF($O$1:$O$35<>0,ROW($O$1:$O$35)),ROW(19:19))),"") ->  | O23: =Stamdata!B5 -> FormueFlex
M24: =IFERROR(INDEX($O$1:$O$35,SMALL(IF($O$1:$O$35<>0,ROW($O$1:$O$35)),ROW(20:20))),"") ->  | O24: =Stamdata!B6 -> Bank Alm.
M25: =IFERROR(INDEX($O$1:$O$35,SMALL(IF($O$1:$O$35<>0,ROW($O$1:$O$35)),ROW(21:21))),"") ->  | O25: =Stamdata!B7 -> Kasse
M26: =IFERROR(INDEX($O$1:$O$35,SMALL(IF($O$1:$O$35<>0,ROW($O$1:$O$35)),ROW(22:22))),"") ->  | O26: =Stamdata!B8 -> Aktie
M27: =IFERROR(INDEX($O$1:$O$35,SMALL(IF($O$1:$O$35<>0,ROW($O$1:$O$35)),ROW(23:23))),"") ->  | O27: =Stamdata!B9 -> 0
M28: =IFERROR(INDEX($O$1:$O$35,SMALL(IF($O$1:$O$35<>0,ROW($O$1:$O$35)),ROW(24:24))),"") ->  | O28: =Stamdata!B10 -> 0
M29: =IFERROR(INDEX($O$1:$O$35,SMALL(IF($O$1:$O$35<>0,ROW($O$1:$O$35)),ROW(25:25))),"") ->  | O29: =Stamdata!B11 -> 0
M30: =IFERROR(INDEX($O$1:$O$35,SMALL(IF($O$1:$O$35<>0,ROW($O$1:$O$35)),ROW(26:26))),"") ->  | O30: =Stamdata!B12 -> 0
M31: =IFERROR(INDEX($O$1:$O$35,SMALL(IF($O$1:$O$35<>0,ROW($O$1:$O$35)),ROW(27:27))),"") ->  | O31: =Stamdata!B13 -> 0
M32: =IFERROR(INDEX($O$1:$O$35,SMALL(IF($O$1:$O$35<>0,ROW($O$1:$O$35)),ROW(28:28))),"") ->  | O32: =Stamdata!B14 -> 0
M33: =IFERROR(INDEX($O$1:$O$35,SMALL(IF($O$1:$O$35<>0,ROW($O$1:$O$35)),ROW(29:29))),"") ->  | O33: =Stamdata!B15 -> 0
M34: =IFERROR(INDEX($O$1:$O$35,SMALL(IF($O$1:$O$35<>0,ROW($O$1:$O$35)),ROW(30:30))),"") ->  | O34: =Stamdata!B16 -> 0
